bitfinex-derivatives/quotes_ETHF0:USTF0_20210403
["timestamp","ask_amount","ask_price","bid_price","bid_amount"]
[1617430293659,2.90695,2098.5,2098.4,9.42358609]
[1617430294159,2.90695,2098.5,2098.3,9.42361583]
[1617430295962,2.90695,2098.5,2098.4,9.422097]
[1617430296961,2.571,2099.1,2098.4,9.56208513]
[1617430297172,2.571,2099.1,2098.4,0.13998813]
[1617430297362,2.571,2099.1,2098.8,9.41024723]
[1617430297664,2.571,2099.9,2098.9,9.40812312]
[1617430297863,2.571,2099.9,2098.9,9.54807437]
[1617430298063,2.571,2099.9,2099.8,7.19366912]
[1617430298565,5.47795,2099.9,2099.8,7.19366912]
[1617430298763,5.47795,2099.9,2099.4,8.30038745]
[1617430299064,5.47795,2099.9,2099.7,8.29237696]
[1617430299565,5.47795,2099.9,2099.8,8.28960734]
[1617430299766,5.47795,2099.9,2099.8,9.89310734]
[1617430300265,5.47795,2099.9,2099.8,1.6035]
[1617430301068,2.90695,2099.9,2099.8,1.6035]
[1617430302969,2.90695,2099.9,2099.5,7.1498548]
[1617430303772,2.90695,2099.9,2099.8,6.04955704]
[1617430304172,2.90695,2099.9,2099.4,7.14947651]
[1617430304374,2.90695,2099.5,2099.4,7.14947651]
[1617430307173,2.90695,2099.5,2099.1,11.15443875]
[1617430307876,2.90695,2099.5,2099.1,2.90695]
[1617430308175,2.90695,2099.5,2099.1,11.15433155]
[1617430308375,2.90695,2099.2,2099.1,11.15433155]
[1617430309177,2.90695,2099.2,2099.1,2.90695]
[1617430310175,2.90695,2099.2,2099.1,11.15535062]
[1617430310578,7.669,2101.0,2099.1,11.15535062]
[1617430311091,7.669,2101.0,2100.3,4.94790616]
[1617430311781,2.571,2101.0,2100.3,4.94790616]
[1617430311978,2.571,2101.0,2100.2,4.94540528]
[1617430312479,13.0,2101.7,2099.9,2.90695]
[1617430312480,2.90695,2100.3,2099.9,2.90695]
[1617430314483,2.90695,2100.0,2099.9,2.90695]
[1617430324400,15.571,2101.7,2099.9,2.90695]
[1617430324597,15.571,2101.7,2099.9,4.56725]
[1617430325800,13.0,2101.7,2099.9,9.49771464]
[1617430326602,13.0,2101.7,2100.8,2.90695]
[1617430328506,13.0,2101.7,2101.1,2.90695]
[1617430330714,2.90695,2101.2,2101.1,2.90695]
[1617430331114,2.90695,2101.2,2099.4,4.914024]
[1617430331515,2.90695,2101.2,2099.5,4.91374885]
[1617430331715,2.90695,2101.2,2099.5,7.42274885]
[1617430332818,13.0,2101.7,2100.9,2.90695]
[1617430333921,13.0,2101.7,2100.9,4.97765]
[1617430334722,13.0,2101.7,2101.4,2.90695]
[1617430335120,13.0,2101.7,2101.4,4.73945]
[1617430336825,2.90695,2101.5,2101.4,4.73945]
[1617430347544,2.90695,2101.5,2101.4,2.90695]
[1617430350948,2.90695,2101.5,2100.1,4.90820939]
[1617430351148,4.87815,2101.5,2100.8,2.90695]
[1617430353060,2.90695,2100.9,2100.8,2.90695]
[1617430354558,5.23005,2100.9,2100.8,2.90695]
[1617430354765,5.23005,2100.9,2099.9,4.91001952]
[1617430354959,5.23005,2100.9,1265.2,2.21289782]
[1617430354960,63.359,2100.6,2099.8,4.91064534]
[1617430355461,63.359,2100.6,2099.6,4.91226941]
[1617430355759,63.359,2100.6,2099.5,4.9133137]
[1617430356858,63.359,2100.6,2099.2,6.0065678]
[1617430356859,63.359,2100.6,2099.4,4.91446198]
[1617430357159,63.359,2100.6,2099.9,2.90695]
[1617430359160,63.359,2100.6,2100.2,2.90695]
[1617430359764,63.359,2100.6,2099.6,4.91826429]
[1617430359966,65.8856,2100.6,2099.5,4.91869278]
[1617430361170,65.8856,2100.6,2099.9,2.90695]
[1617430361569,65.8856,2100.6,2099.6,4.91933198]
[1617430361971,65.8856,2100.6,2099.7,0.13987536]
[1617430362272,65.8856,2100.6,2099.7,4.92476278]
[1617430363072,65.8856,2100.6,2099.8,2.90695]
[1617430365175,4.75515,2099.9,2099.8,2.90695]
[1617430365475,4.75515,2099.9,2099.7,4.92476278]
[1617430365777,71.0633,2099.8,2099.7,4.92476278]
[1617430366077,71.0633,2099.8,2099.6,4.92689719]
[1617430366482,71.0633,2099.8,2099.4,4.93032799]
[1617430366679,71.0633,2099.8,2099.3,4.93164857]
[1617430367080,2.90695,2099.4,2099.2,4.93275646]
[1617430367379,5.09725,2099.4,2099.2,4.93275646]
[1617430369383,2.90695,2099.4,2099.2,4.93275646]
[1617430369885,2.90695,2099.4,2099.3,6.04393548]
[1617430371486,71.0633,2099.8,2099.3,6.04393548]
[1617430372087,2.90695,2099.4,2099.3,6.04393548]
[1617430372287,2.90695,2099.4,2099.2,2.90695]
[1617430372486,2.90695,2099.4,2099.3,0.13990048]
[1617430372892,71.0633,2099.8,2099.3,1.86220048]
[1617430373292,71.0633,2099.8,2099.4,0.13988987]
[1617430373495,71.0633,2099.8,2099.4,7.28010135]
[1617430373694,71.0633,2099.8,2099.5,7.13678052]
[1617430373894,71.0633,2099.8,2099.5,7.27665685]
[1617430374095,2.90695,2099.8,2099.7,2.90695]
[1617430374696,2.90695,2099.8,2099.5,7.13767001]
[1617430375097,2.90695,2099.8,2099.7,6.04398557]
[1617430375497,2.90695,2099.8,2099.6,6.04531248]
[1617430379505,2.90695,2099.8,2099.5,6.04642719]
[1617430380005,2.90695,2099.8,2099.7,4.94738515]
[1617430380710,2.90695,2099.8,2099.7,7.16948412]
[1617430383809,5.27845,2099.8,2099.6,7.16638634]
[1617430384110,5.27845,2099.8,2099.7,7.16606986]
[1617430384809,5.27845,2099.8,2099.5,7.16588769]
[1617430385109,5.27845,2099.8,2099.6,7.16566765]
[1617430386315,5.27845,2099.8,2097.7,11.0244426]
[1617430386316,5.27845,2099.8,2099.4,7.16933309]
[1617430386517,5.27845,2099.8,2099.6,4.96992399]
[1617430387117,5.27845,2099.8,2099.3,6.07541719]
[1617430387416,5.27845,2099.8,2099.5,4.97130319]
[1617430388116,5.27845,2099.8,2099.5,4.16690319]
[1617430388316,5.27845,2099.8,2099.3,6.07541719]
[1617430388516,5.27845,2099.8,2099.2,6.07854823]
[1617430388718,5.27845,2099.8,2099.1,6.07938031]
[1617430389118,5.27845,2099.8,2099.0,6.07943304]
[1617430389617,5.27845,2099.8,2098.9,6.07948082]
[1617430390319,2.90695,2099.0,2098.1,6.06792549]
[1617430390519,4.65345,2099.0,2098.1,6.06792549]
[1617430391823,4.65345,2099.0,2097.7,2.90695]
[1617430391824,4.65345,2099.0,2098.0,6.0664596]
[1617430392418,2.90695,2098.1,2098.0,6.0664596]
[1617430395225,4.97075,2098.1,2098.0,6.0664596]
[1617430395927,4.97075,2098.1,2097.7,2.90695]
[1617430395928,4.97075,2098.1,2097.8,6.06968454]
[1617430396926,78.1953,2097.9,2097.8,6.06968454]
[1617430397129,78.1953,2097.9,2097.7,2.90695]
[1617430398529,2.90695,2097.8,2097.7,2.90695]
[1617430401835,2.90695,2097.8,2097.7,7.86883805]
[1617430402232,2.90695,2097.8,2097.7,2.90695]
[1617430411243,2.90695,2097.8,2097.4,4.95881032]
[1617430411445,2.90695,2097.8,2097.0,54.8652518]
[1617430411844,2.90695,2097.8,2097.2,4.96406587]
[1617430412744,2.90695,2097.3,2097.2,4.96406587]
[1617430415549,2.90695,2097.3,2097.1,6.06656423]
[1617430416850,2.90695,2097.3,2097.2,4.96394792]
[1617430417953,2.90695,2097.3,2097.0,49.90225]
[1617430418158,5.42445,2097.3,2097.0,49.90225]
[1617430430872,2.90695,2097.3,2097.0,49.90225]
[1617430444603,2.90695,2097.3,2097.2,4.96626379]
[1617430444902,2.90695,2097.3,2097.0,55.97212796]
[1617430445502,2.90695,2097.3,2097.1,0.14003756]
[1617430445702,2.90695,2097.3,2097.1,6.20827425]
[1617430446202,2.90695,2097.3,2097.1,6.06823669]
[1617430449208,2.90695,2097.3,2097.2,6.06914295]
[1617430449408,2.90695,2097.3,2097.2,6.20917299]
[1617430449613,78.1953,2097.9,2097.2,0.14003004]
[1617430450014,78.1953,2097.9,2097.7,4.96092425]
[1617430450211,78.1953,2097.9,2097.7,6.84102425]
[1617430450411,78.1953,2097.9,2097.8,4.9583073]
[1617430450611,78.1953,2097.9,2097.8,6.19722237]
[1617430451011,81.10225,2097.9,2097.8,6.19722237]
[1617430451412,81.10225,2097.9,2097.8,0.1399927]
[1617430452311,2.90695,2097.9,2097.8,0.1399927]
[1617430453015,2.90695,2097.9,2097.8,7.30063905]
[1617430453212,2.571,2099.8,2097.8,7.30063905]
[1617430453514,2.571,2099.8,2097.8,0.1399927]
[1617430453714,2.571,2099.8,2098.6,7.10868714]
[1617430454114,2.571,2099.8,2098.7,4.95208063]
[1617430454514,2.571,2099.8,2098.8,4.95568626]
[1617430454716,2.571,2099.8,2098.7,4.95709188]
[1617430455114,2.90695,2098.8,2098.7,7.86404188]
[1617430455715,2.90695,2098.8,2098.7,2.90695]
[1617430457719,2.90695,2098.8,2098.7,8.962138]
[1617430457919,2.90695,2098.8,2098.7,2.90695]
[1617430463724,2.90695,2098.8,2098.7,7.8675161]
[1617430464325,2.90695,2098.8,2098.7,2.90695]
[1617430466426,2.90695,2098.8,2098.6,6.06932694]
[1617430468928,2.90695,2098.8,2098.7,6.06689089]
[1617430470030,2.90695,2098.8,2098.6,6.06711445]
[1617430470629,2.90695,2098.8,2098.7,6.06708298]
[1617430470929,2.90695,2098.8,2098.6,6.06715855]
[1617430471629,2.90695,2098.8,2098.7,6.06609097]
[1617430473431,2.90695,2098.8,2098.6,6.06656294]
[1617430473730,2.90695,2098.8,2098.7,6.06622562]
[1617430474634,2.571,2099.8,2098.7,6.06622562]
[1617430474838,2.571,2099.8,2098.6,7.18059936]
[1617430475238,2.571,2099.8,2099.4,6.51474567]
[1617430475239,2.90695,2099.5,2099.4,6.51474567]
[1617430475437,2.90695,2099.5,2099.4,1.5457]
[1617430475836,2.90695,2099.5,2099.4,7.61495751]
[1617430476338,2.90695,2099.5,2099.4,1.5457]
[1617430477138,2.90695,2099.5,2099.4,8.71080705]
[1617430477639,2.90695,2099.5,2099.4,1.5457]
[1617430478139,2.90695,2099.5,2099.4,6.49516048]
[1617430479343,2.90695,2099.5,2099.4,1.5457]
[1617430479942,2.90695,2099.5,2099.4,6.49475283]
[1617430480456,2.90695,2099.5,2099.2,7.85211441]
[1617430483157,2.90695,2099.5,2099.2,2.90695]
[1617430486851,2.90695,2099.5,2099.0,4.94677316]
[1617430487351,2.90695,2099.5,2098.9,4.94592163]
[1617430487551,7.669,2100.8,2098.9,4.94592163]
[1617430487552,7.669,2100.8,2099.0,2.90695]
[1617430487751,7.669,2100.8,2099.0,5.20495]
[1617430488154,7.669,2100.8,2099.0,10.1492436]
[1617430488454,7.669,2100.8,2099.1,4.94395234]
[1617430489553,2.571,2100.8,2099.3,2.90695]
[1617430491556,2.90695,2099.4,2099.3,2.90695]
[1617430493761,2.90695,2099.4,2099.0,4.93778912]
[1617430493963,4.62455,2099.4,2099.0,4.93778912]
[1617430494160,4.62455,2099.4,2098.7,4.94141502]
[1617430494560,4.62455,2099.4,2098.5,4.94277098]
[1617430494759,4.62455,2099.4,2098.6,4.94231008]
[1617430494960,2.90695,2099.4,2098.6,4.94231008]
[1617430495260,2.90695,2099.4,2099.1,4.94168382]
[1617430495460,2.90695,2099.4,2099.2,4.94129764]
[1617430496565,2.90695,2099.4,2099.3,4.93993265]
[1617430500574,2.90695,2099.4,2099.2,8.94774762]
[1617430503376,2.90695,2099.4,2099.3,4.94411336]
[1617430503577,2.90695,2099.4,2099.2,7.85212755]
[1617430504177,2.90695,2099.4,2099.2,4.94517755]
[1617430505983,2.90695,2099.4,2099.1,4.9405094]
[1617430507384,2.90695,2099.4,2099.2,4.94334071]
[1617430509387,2.90695,2099.4,2099.1,6.04677546]
[1617430509787,2.90695,2099.4,2099.3,4.94794758]
[1617430510989,5.34985,2099.4,2099.2,4.94915106]
[1617430511389,5.34985,2099.4,2099.0,4.952858]
[1617430511591,5.34985,2099.4,2098.7,2.90695]
[1617430511592,5.34985,2099.4,2098.9,4.95373107]
[1617430511888,2.90695,2099.0,2098.9,4.95373107]
[1617430521400,2.90695,2099.0,2098.8,6.05925391]
[1617430525305,2.90695,2099.0,2098.7,2.90695]
[1617430525306,2.90695,2099.0,2098.9,7.1841906]
[1617430526809,2.90695,2099.0,2098.8,7.18586265]
[1617430527008,4.96805,2099.0,2098.8,7.18586265]
[1617430530312,4.96805,2099.0,2098.9,7.18513429]
[1617430531012,2.90695,2099.0,2098.9,7.18513429]
[1617430533419,2.90695,2099.0,2098.7,11.18805827]
[1617430533817,2.90695,2099.0,2098.8,8.27904291]
[1617430541226,2.90695,2099.0,2098.7,11.1860234]
[1617430546633,2.90695,2099.0,2098.8,8.27821536]
[1617430547337,2.90695,2099.0,2098.7,11.1855512]
[1617430549735,2.90695,2099.0,2098.8,8.27786644]
[1617430555741,2.90695,2099.0,2098.9,8.27872161]
[1617430556145,2.90695,2099.0,2098.8,8.2782308]
[1617430558644,2.90695,2099.0,2098.9,8.27605445]
[1617430559245,2.90695,2099.0,2098.8,8.27565606]
[1617430560349,2.571,2100.0,2098.8,8.27565606]
[1617430560551,7.669,2100.6,2098.9,0.13995246]
[1617430560751,2.571,2100.6,2099.9,6.06395675]
[1617430560949,2.571,2100.6,2099.9,8.03525675]
[1617430561150,2.571,2100.6,2100.3,4.95963231]
[1617430561550,61.8914,2101.3,2100.4,4.95837284]
[1617430561753,61.8914,2101.3,2100.4,6.90637284]
[1617430562250,61.8914,2101.3,2100.5,4.95705662]
[1617430562651,2.90695,2100.6,2100.5,4.95705662]
[1617430575378,2.90695,2100.6,2100.4,6.06020977]
[1617430576876,2.90695,2100.6,2100.4,8.96715977]
[1617430577076,2.90695,2100.6,2100.5,6.05800219]
[1617430578880,2.90695,2100.6,2100.4,4.47525]
[1617430579481,2.90695,2100.6,2100.4,11.62742736]
[1617430580381,2.90695,2100.6,2100.5,7.15105198]
[1617430580780,2.90695,2100.6,2100.4,4.47525]
[1617430581384,2.90695,2100.6,2100.5,7.14969694]
[1617430581780,2.90695,2100.6,2100.4,4.47525]
[1617430582583,2.90695,2100.6,2100.5,7.14967779]
[1617430585383,2.90695,2100.6,2100.4,4.47525]
[1617430586185,2.90695,2100.6,2100.4,2.90695]
[1617430586386,2.90695,2100.6,2100.5,6.04647707]
[1617430589487,2.90695,2100.6,2100.4,8.95747908]
[1617430589687,2.90695,2100.6,2100.5,2.0526]
[1617430589888,2.90695,2100.6,2100.5,8.10230763]
[1617430590288,2.90695,2100.6,2100.5,2.0526]
[1617430590990,2.90695,2100.6,2100.5,8.10261314]
[1617430592092,2.90695,2100.6,2100.5,2.0526]
[1617430595099,2.90695,2100.6,2100.4,2.90695]
[1617430597102,2.90695,2100.6,2100.4,8.94651872]
[1617430599610,2.90695,2100.6,2100.5,4.93937804]
[1617430601611,2.90695,2100.6,2100.4,7.84723674]
[1617430603915,2.90695,2100.6,2100.5,4.94054751]
[1617430604316,2.90695,2100.6,2100.4,8.94502558]
[1617430607920,2.90695,2100.6,2100.5,6.03672961]
[1617430608119,2.90695,2100.6,2100.4,8.94404272]
[1617430608819,2.90695,2100.6,2100.5,4.93714734]
[1617430611221,2.90695,2100.6,2100.4,8.94437528]
[1617430615928,2.90695,2100.6,2100.5,6.03748049]
[1617430616232,2.90695,2100.6,2100.4,8.94490675]
[1617430619033,2.90695,2100.6,2100.5,4.94357742]
[1617430619331,2.90695,2100.6,2100.4,2.90695]
[1617430620234,2.90695,2100.6,2100.5,4.94458575]
[1617430621033,2.90695,2100.6,2100.4,2.90695]
[1617430621233,2.90695,2100.6,2100.4,8.95012294]
[1617430623037,2.90695,2100.6,2100.5,6.0601138]
[1617430624037,2.90695,2100.6,2100.3,6.06379609]
[1617430624438,2.90695,2100.6,2100.3,4.9650819]
[1617430625539,2.90695,2100.6,2098.8,9.37848803]
[1617430625540,2.90695,2100.6,2100.2,4.96646351]
[1617430627442,2.90695,2100.3,2100.2,4.96646351]
[1617430627742,5.22815,2100.3,2100.2,4.96646351]
[1617430629343,5.22815,2100.3,2100.0,6.06942419]
[1617430629845,5.22815,2100.3,2100.1,6.07349362]
[1617430631646,2.90695,2100.3,2100.1,6.07349362]
[1617430631849,2.90695,2100.3,2100.2,6.07182132]
[1617430632749,2.90695,2100.3,2099.9,7.17306282]
[1617430633551,2.90695,2100.0,2099.9,7.17306282]
[1617430633751,2.90695,2100.0,2099.8,7.17549825]
[1617430634149,2.90695,2100.0,2099.7,10.08363505]
[1617430634550,2.90695,2100.0,2099.8,7.1843384]
[1617430634752,2.90695,2100.0,2099.7,2.90695]
[1617430634753,2.90695,2100.0,2099.9,7.18304264]
[1617430638355,2.90695,2100.0,2099.8,7.18461691]
[1617430639057,2.90695,2100.0,2099.9,7.1869579]
[1617430639954,2.90695,2100.0,2099.6,2.90695]
[1617430639955,2.90695,2100.0,2099.6,11.19748668]
[1617430640156,20.669,2101.7,2099.6,11.19748668]
[1617430640555,20.669,2101.7,2099.8,8.28474734]
[1617430640757,20.669,2101.7,2101.0,4.96964479]
[1617430640955,15.571,2101.7,2101.0,4.96964479]
[1617430641355,2.90695,2101.1,2101.0,4.96964479]
[1617430641757,2.90695,2101.1,2100.9,6.07241125]
[1617430642156,2.90695,2101.1,2101.0,4.96889656]
[1617430642456,2.90695,2101.1,2100.9,6.07185043]
[1617430645659,2.90695,2101.1,2100.7,7.18635896]
[1617430647463,2.90695,2100.8,2100.7,7.18635896]
[1617430648265,2.90695,2100.8,2100.6,7.18777442]
[1617430649266,2.90695,2100.8,2100.7,7.18737415]
[1617430652175,2.90695,2100.8,2100.4,10.16380423]
[1617430652775,2.90695,2100.8,2100.3,8.29614939]
[1617430653175,2.90695,2100.8,2100.7,7.19020288]
[1617430657682,2.90695,2100.8,2100.6,7.19425986]
[1617430658883,2.90695,2100.8,2100.7,7.19218829]
[1617430659283,2.90695,2100.8,2100.4,8.29669836]
[1617430659582,2.90695,2100.5,2100.4,8.29669836]
[1617430663489,2.90695,2100.5,2100.4,2.90695]
[1617430666393,15.571,2101.7,2100.4,2.90695]
[1617430666592,15.571,2101.7,2100.4,4.69860147]
[1617430666793,15.571,2101.7,2101.6,6.0866641]
[1617430667496,15.571,2101.7,2101.3,1.9433]
[1617430667694,15.90695,2101.7,2101.3,1.9433]
[1617430667894,15.90695,2101.7,2101.3,9.13438345]
[1617430669697,2.90695,2101.4,2101.3,9.13438345]
[1617430669902,2.90695,2101.4,2101.3,1.9433]
[1617430670100,2.90695,2101.4,2101.0,2.90695]
[1617430670299,2.90695,2101.4,2101.0,11.20129059]
[1617430670700,2.90695,2101.4,2101.0,2.90695]
[1617430671600,2.90695,2101.1,2101.0,2.90695]
[1617430676812,2.8982093,2101.1,2101.0,2.90695]
[1617430689037,2.8982093,2101.1,2101.0,11.18136166]
[1617430689231,13.0,2101.7,2101.0,11.18136166]
[1617430689433,13.0,2101.7,2101.0,2.90695]
[1617430689735,13.0,2101.7,2101.3,8.26769475]
[1617430689933,13.0,2101.7,2101.6,5.05115]
[1617430692036,15.90695,2101.7,2101.6,5.05115]
[1617430692437,13.0,2101.7,2101.6,5.05115]
[1617430692837,13.0,2101.7,2101.6,13.31456847]
[1617430693538,13.0,2101.7,2101.6,5.05115]
[1617430693941,13.0,2101.7,2101.6,13.31493175]
[1617430694338,13.0,2101.7,2101.6,5.05115]
[1617430695840,11.0,2101.9,2101.6,5.05115]
[1617430696040,11.0,2101.9,2101.6,5.19091526]
[1617430696542,11.0,2101.9,2101.6,5.05115]
[1617430696740,11.0,2101.9,2101.8,6.03300763]
[1617430698842,11.0,2101.9,2101.6,5.05115]
[1617430701045,11.0,2101.9,2101.6,12.17478749]
[1617430706152,11.0,2101.9,2101.7,7.12150206]
[1617430707653,11.0,2101.9,2101.7,4.91913972]
[1617430709055,11.0,2101.9,2101.8,4.91664308]
[1617430710153,11.0,2101.9,2101.7,4.91419137]
[1617430710853,11.0,2101.9,2101.8,4.91344552]
[1617430712658,11.0,2101.9,2101.6,2.90695]
[1617430713760,11.0,2101.9,2101.7,4.91418546]
[1617430713959,11.0,2101.9,2101.7,6.88028546]
[1617430714161,11.0,2101.9,2101.8,4.91227047]
[1617430715160,10.7077,2101.9,2101.8,4.91227047]
[1617430715360,10.7077,2101.9,2101.8,6.0007175]
[1617430715661,10.7077,2101.9,2101.7,1.9661]
[1617430716561,10.7077,2101.9,2101.7,9.05085276]
[1617430717061,7.1666,2101.9,2101.7,9.05085276]
[1617430717262,6.4282,2101.9,2101.8,7.08386763]
[1617430717962,6.2445,2101.9,2101.8,7.08386763]
[1617430719064,6.2445,2101.9,2101.7,1.9661]
[1617430719263,6.2445,2101.9,2101.6,7.79839686]
[1617430719463,6.2445,2101.9,2101.7,4.89134277]
[1617430719663,6.2445,2101.9,2101.7,7.14374277]
[1617430720564,2.0327,2101.9,2101.7,7.14374277]
[1617430720765,8.0,2102.4,2101.7,7.14374277]
[1617430720965,8.0,2102.4,2101.8,4.886225]
[1617430721769,8.0,2102.4,2101.7,7.13752094]
[1617430722068,8.0,2102.4,2101.8,4.88458509]
[1617430722270,8.0,2102.4,2102.3,2.90695]
[1617430722468,8.0,2102.4,2102.3,5.37705]
[1617430722671,6.0658,2102.4,2102.3,5.37705]
[1617430726174,2.571,2104.5,2102.3,5.37705]
[1617430726374,2.571,2104.5,2103.8,2.90695]
[1617430726674,3.15885,2102.4,2102.3,2.4701]
[1617430727877,3.15885,2102.4,2101.9,4.88254573]
[1617430728075,3.15885,2102.4,2102.0,4.88178658]
[1617430728275,3.15885,2102.4,2102.3,2.90695]
[1617430728477,3.15885,2102.4,2102.3,4.51905]
[1617430739996,3.15885,2102.4,2102.3,9.40602399]
[1617430740698,3.15885,2102.4,2102.3,4.51905]
[1617430740898,3.15885,2102.4,2102.3,2.90695]
[1617430745203,2.4292,2103.2,2102.3,2.90695]
[1617430745604,3.15885,2102.4,2102.3,2.90695]
[1617430745904,3.15885,2102.4,2102.3,7.79596891]
[1617430746306,3.15885,2102.4,2102.3,2.90695]
[1617430746506,6.0658,2102.4,2102.3,2.90695]
[1617430749307,3.15885,2102.4,2102.3,2.90695]
[1617430753618,3.15885,2102.4,2102.3,7.80698076]
[1617430754920,3.15885,2102.4,2102.3,2.90695]
[1617430755420,3.15885,2102.4,2102.3,3.04665632]
[1617430765141,13.15885,2102.4,2102.3,3.04665632]
[1617430765641,13.15885,2102.4,2102.3,11.22071871]
[1617430766643,10.0,2102.4,2102.3,11.22071871]
[1617430767345,10.0,2102.4,2102.3,3.04665632]
[1617430767945,10.0,2102.4,2102.3,11.22554247]
[1617430768847,10.0,2102.4,2102.3,3.04665632]
[1617430769946,23.0,2102.4,2102.3,3.04665632]
[1617430775452,23.0,2102.4,2102.3,12.36172545]
[1617430776452,23.0,2102.4,2102.3,3.04665632]
[1617430776852,23.0,2102.4,2102.3,12.35930982]
[1617430778252,23.0,2102.4,2102.3,3.04665632]
[1617430778653,23.0,2102.4,2102.3,12.36399243]
[1617430781962,23.0,2102.4,2102.3,3.04665632]
[1617430789069,23.0,2102.4,2102.3,13.48316839]
[1617430790071,23.0,2102.4,2102.3,3.04665632]
[1617430790874,25.90695,2102.4,2102.3,0.13970632]
[1617430791071,25.90695,2102.4,2102.3,9.48896721]
[1617430791273,25.90695,2102.4,2102.3,9.34926089]
[1617430791471,25.90695,2102.4,2102.2,9.49236]
[1617430791671,25.90695,2102.4,2102.3,0.13973219]
[1617430791872,25.90695,2102.4,2102.0,9.35719102]
[1617430792273,25.90695,2102.4,2102.1,0.13974033]
[1617430793077,25.90695,2102.4,2102.3,8.25865095]
[1617430793676,25.90695,2102.4,2101.9,12.26675441]
[1617430794080,25.90695,2102.4,2102.0,9.35805972]
[1617430794376,25.90695,2102.4,2102.0,9.49780344]
[1617430794678,23.0,2102.4,2102.1,0.13974331]
[1617430796779,23.0,2102.4,2102.2,2.90695]
[1617430796979,23.0,2102.4,2102.1,9.49542961]
[1617430797178,23.0,2102.4,2102.0,9.35777962]
[1617430797579,23.0,2102.4,2102.2,9.37670199]
[1617430798779,2.90695,2102.3,2102.2,9.37670199]
[1617430800381,2.90695,2102.3,2101.9,9.35781658]
[1617430800580,2.90695,2102.3,2101.8,9.35871092]
[1617430800780,23.0,2102.4,2101.8,9.35871092]
[1617430800781,2.90695,2101.9,2101.8,9.35871092]
[1617430800982,4.94985,2101.9,2101.8,9.35871092]
[1617430801481,2.0429,2101.9,2101.8,9.49846647]
[1617430802082,23.0,2102.4,2101.8,9.49846647]
[1617430802282,23.0,2102.4,2101.9,0.13975195]
[1617430802482,23.0,2102.4,2102.3,8.25762995]
[1617430802782,25.90695,2102.4,2102.3,8.25762995]
[1617430803383,25.90695,2102.4,2101.9,9.35864728]
[1617430803786,25.90695,2102.4,2102.1,9.35327555]
[1617430804386,25.90695,2102.4,2102.2,9.49011428]
[1617430804787,25.90695,2102.4,2102.3,2.90695]
[1617430804986,23.0,2102.4,2102.3,2.90695]
[1617430805889,23.0,2102.4,2102.3,3.04666521]
[1617430816002,23.0,2102.4,2102.3,13.50270642]
[1617430816401,23.0,2102.4,2102.3,3.04666521]
[1617430817303,23.0,2102.4,2102.3,13.5060908]
[1617430818404,23.0,2102.4,2102.3,3.04666521]
[1617430823808,23.0,2102.4,2102.3,14.03207826]
[1617430824208,22.2009,2102.4,2102.3,14.03207826]
[1617430824908,13.8417,2102.4,2102.3,3.04666521]
[1617430825108,2.4966,2102.4,2102.3,3.04666521]
[1617430825508,3.15885,2102.5,2102.3,3.04666521]
[1617430826110,3.15885,2102.5,2102.4,0.13964369]
[1617430826509,3.15885,2102.5,2102.4,1.93504369]
[1617430826712,13.4241,2105.2,2102.4,1.93504369]
[1617430826913,13.4241,2105.2,2104.0,2.90695]
[1617430827216,13.4241,2105.2,2105.1,4.93874608]
[1617430827414,13.4241,2105.2,2104.9,6.03624521]
[1617430828316,13.4241,2105.2,2105.0,6.03529949]
[1617430829117,2.90695,2105.1,2105.0,6.03529949]
[1617430829719,2.90695,2105.1,2104.9,4.93021079]
[1617430832218,2.90695,2105.1,2104.8,4.93002579]
[1617430832618,2.90695,2105.1,2104.9,4.92973466]
[1617430837927,2.90695,2105.1,2104.9,4.91973466]
[1617430838227,2.90695,2105.1,2105.0,6.01857884]
[1617430838927,2.90695,2105.1,2104.9,2.4969]
[1617430839128,16.0,2105.7,2105.0,2.90695]
[1617430839530,16.0,2105.7,2105.3,6.00965904]
[1617430839829,16.0,2105.7,2105.4,6.00911664]
[1617430840730,16.0,2105.7,2105.0,2.90695]
[1617430841131,16.0,2105.7,2105.6,2.90695]
[1617430843033,18.90695,2105.7,2105.6,2.90695]
[1617430847237,8.09305,2105.6,2104.6,5.98138803]
[1617430847437,8.09305,2105.6,2104.9,2.3452]
[1617430848540,8.09305,2105.6,2104.7,4.89169204]
[1617430848939,8.09305,2105.6,2104.6,4.8894241]
[1617430849138,8.09305,2105.6,2105.5,2.90695]
[1617430851139,11.0,2105.6,2105.5,2.90695]
[1617430861957,8.09305,2105.6,2105.5,2.90695]
[1617430863860,16.0,2105.7,2105.5,2.90695]
[1617430864460,13.4287,2107.7,2105.5,2.90695]
[1617430864962,13.4287,2107.7,2105.5,7.76315275]
[1617430865260,13.4287,2107.7,2106.9,2.90695]
[1617430865464,15.9997,2107.7,2106.9,5.34865]
[1617430865660,13.4287,2107.7,2106.9,5.34865]
[1617430867365,13.4287,2107.7,2107.2,2.90695]
[1617430869368,2.90695,2107.3,2107.2,2.90695]
[1617430895198,13.4287,2107.7,2107.2,2.90695]
[1617430895399,13.4287,2107.7,2107.2,5.37795]
[1617430895599,13.4287,2107.7,2107.6,2.90695]
[1617430897802,16.33565,2107.7,2107.6,2.90695]
[1617430913726,2.90695,2107.7,2107.6,2.90695]
[1617430914327,16.1519,2109.7,2107.6,2.90695]
[1617430915230,16.1519,2109.7,2107.7,0.13937939]
[1617430916031,16.1519,2109.7,2108.7,2.90695]
[1617430916231,16.1519,2109.7,2108.7,4.72765]
[1617430917930,2.90695,2108.8,2108.7,4.72765]
[1617430921135,2.90695,2108.8,2108.7,9.54097263]
[1617430921836,2.90695,2108.8,2108.7,4.72765]
[1617430922637,2.90695,2108.8,2108.7,9.54066329]
[1617430924243,2.90695,2108.8,2108.7,4.72765]
[1617430924540,2.90695,2108.8,2108.7,2.90695]